[Event "98th Caplin Hastings Masters 2024-25"]
[Site "Hastings"]
[Date "2024.12.29"]
[Round "3.25"]
[White "Bharat Kumar, Balahari"]
[Black "Bozinakis, Pavlos"]
[Result "0-1"]
[ECO "A00"]
[WhiteElo "2063"]
[BlackElo "2271"]
[Annotator "RC"]
[PlyCount "76"]
[EventDate "2024.12.23"]
[EventType "swiss"]
[EventCountry "ENG"]
[SourceTitle "playchess.com"]
[Source "ChessBase"]
[SourceQuality "1"]
[TimeControl "5400+30"]

1. g3 {[%emt 0:00:14]} e5 {[%emt 0:00:30]} 2. Bg2 {[%emt 0:00:15]} d5 {[%emt 0:00:35]} 3. d3 {[%emt 0:00:18]} Nf6 {[%emt 0:01:54]} 4. a3 {[%emt 0:00:38]} c5 {[%emt 0:01:48]} 5. b3 {[%emt 0:00:31]} Nc6 {[%emt 0:00:25]} 6. Bb2 {[%emt 0:00:08]} Bd6 {[%emt 0:01:12]} 7. Nd2 {[%emt 0:01:35]} O-O {[%emt 0:00:40]} 8. e3 {[%emt 0:03:24]} Re8 {[%emt 0:01:42]} 9. Ne2 {[%emt 0:03:19]} Be6 {[%emt 0:01:21]} 10. O-O {[%emt 0:00:41]} Rc8 {[%emt 0:02:15]} 11. h3 {[%emt 0:08:11]} d4 {[%emt 0:02:29]} 12. Nc4 {[%emt 0:19:19]} Bb8 {[%emt 0:00:47]} 13. a4 {[%emt 0:04:47]} a6 {[%emt 0:01:37]} 14. f4 {[%emt 0:13:27]} exf4 {[%emt 0:03:25]} 15. exf4 {[%emt 0:15:23]} Bd5 {[%emt 0:01:30]} 16. Rf2 {[%emt 0:03:17]} Bxg2 {[%emt 0:01:16]} 17. Rxg2 {[%emt 0:01:29]} Nd5 {[%emt 0:01:18]} 18. Bc1 {[%emt 0:00:58]} b5 {[%emt 0:02:21]} 19. Na3 {[%emt 0:01:55]} Qb6 {[%emt 0:02:05]} 20. Bd2 {[%emt 0:00:33]} Ne3 {[%emt 0:04:51]} 21. Bxe3 {[%emt 0:01:43]} Rxe3 {[%emt 0:00:08]} 22. Qd2 {[%emt 0:06:21]} Rce8 {[%emt 0:02:32]} 23. Re1 {[%emt 0:03:54]} Bd6 {[%emt 0:02:14]} 24. axb5 {[%emt 0:02:18]} axb5 {[%emt 0:00:11]} 25. Ra1 {[%emt 0:03:37]} Nb4 {[%emt 0:03:32]} 26. Kh2 {[%emt 0:01:51]} h5 {[%emt 0:01:09]} 27. h4 {[%emt 0:00:40]} Qb7 {[%emt 0:01:11]} 28. Ng1 {[%emt 0:00:49]} Nd5 {[%emt 0:02:21]} 29. Qa5 {[%emt 0:02:45]} Ra8 {[%emt 0:03:09]} 30. Qd2 {[%emt 0:00:37]} b4 {[%emt 0:02:05]} 31. Nc4 {[%emt 0:00:17]} Rxa1 {[%emt 0:00:11]} 32. Nxd6 {[%emt 0:00:09]} Qd7 {[%emt 0:01:12]} 33. Nc4 {[%emt 0:01:03]} Ree1 {[%emt 0:00:43]} 34. Ne5 {[%emt 0:00:23]} Qf5 {[%emt 0:00:43]} 35. Nef3 {[%emt 0:00:25]} Red1 {[%emt 0:00:57]} 36. Qe2 {[%emt 0:00:12]} Ne3 {[%emt 0:01:03]} 37. Rf2 {[%emt 0:00:51]} f6 {[%emt 0:00:37]} 38. Kh1 {[%emt 0:00:38]} Qh3+ {[%emt 0:03:30]} 0-1

[Event "98th Caplin Hastings Masters 2024-25"]
[Site "Hastings"]
[Date "2024.12.29"]
[Round "3.26"]
[White "Schimnatkowski, Lukas"]
[Black "Gorainow, Nikita"]
[Result "1-0"]
[ECO "B21"]
[WhiteElo "2221"]
[BlackElo "2045"]
[Annotator "RC"]
[PlyCount "95"]
[EventDate "2024.12.23"]
[EventType "swiss"]
[EventCountry "ENG"]
[SourceTitle "playchess.com"]
[Source "ChessBase"]
[SourceQuality "1"]
[TimeControl "5400+30"]

1. e4 {[%emt 0:00:03]} c5 {[%emt 0:00:04]} 2. Nc3 {[%emt 0:00:14]} e6 {[%emt 0:00:04]} 3. f4 {[%emt 0:00:14]} d5 {[%emt 0:00:11]} 4. Nf3 {[%emt 0:00:15]} dxe4 {[%emt 0:00:11]} 5. Nxe4 {[%emt 0:00:07]} Nc6 {[%emt 0:00:04]} 6. g3 {[%emt 0:00:20]} Be7 {[%emt 0:00:26]} 7. Bg2 {[%emt 0:00:25]} Nf6 {[%emt 0:00:12]} 8. d3 {[%emt 0:00:30]} Nxe4 {[%emt 0:07:08]} 9. dxe4 {[%emt 0:00:17]} Qxd1+ {[%emt 0:00:26]} 10. Kxd1 {[%emt 0:00:05]} O-O {[%emt 0:05:07]} 11. c3 {[%emt 0:02:05]} b6 {[%emt 0:03:33]} 12. Kc2 {[%emt 0:00:26]} Rd8 {[%emt 0:02:58]} 13. Be3 {[%emt 0:00:38]} Ba6 {[%emt 0:01:31]} 14. Rad1 {[%emt 0:06:24]} Be2 {[%emt 0:05:55]} 15. Rd2 {[%emt 0:01:59]} Rxd2+ {[%emt 0:00:07]} 16. Nxd2 {[%emt 0:00:23]} e5 {[%emt 0:12:18]} 17. f5 {[%emt 0:09:01]} Ba6 {[%emt 0:04:28]} 18. g4 {[%emt 0:16:20]} Rd8 {[%emt 0:02:33]} 19. Bf1 {[%emt 0:02:43]} Bb7 {[%emt 0:00:31]} 20. Bd3 {[%emt 0:07:24]} Na5 {[%emt 0:07:11]} 21. b3 {[%emt 0:01:09]} a6 {[%emt 0:00:54]} 22. Be2 {[%emt 0:16:07]} Rd7 {[%emt 0:09:54]} 23. g5 {[%emt 0:05:54]} b5 {[%emt 0:07:54]} 24. f6 {[%emt 0:03:22]} Bf8 {[%emt 0:04:28]} 25. fxg7 {[%emt 0:00:49]} Kxg7 {[%emt 0:00:06]} 26. Rf1 {[%emt 0:03:00]} Be7 {[%emt 0:02:19]} 27. Bh5 {[%emt 0:03:52]} Bd8 {[%emt 0:02:15]} 28. Rf5 {[%emt 0:04:50]} f6 {[%emt 0:10:15]} 29. gxf6+ {[%emt 0:01:56]} Bxf6 {[%emt 0:00:05]} 30. Bxc5 {[%emt 0:00:26]} Nc6 {[%emt 0:00:26]} 31. Be8 {[%emt 0:04:13]} Rc7 {[%emt 0:02:10]} 32. b4 {[%emt 0:04:11]} Ne7 {[%emt 0:01:34]} 33. Rf1 {[%emt 0:00:50]} Ng6 {[%emt 0:00:14]} 34. a4 {[%emt 0:01:38]} Rc8 {[%emt 0:04:05]} 35. Bd7 {[%emt 0:00:19]} Rc7 {[%emt 0:00:09]} 36. Bf5 {[%emt 0:01:32]} Be7 {[%emt 0:00:19]} 37. axb5 {[%emt 0:01:11]} Bxc5 {[%emt 0:01:11]} 38. bxc5 {[%emt 0:00:13]} axb5 {[%emt 0:01:20]} 39. Nb3 {[%emt 0:01:24]} Ne7 {[%emt 0:00:54]} 40. Kd3 {[%emt 0:00:38]} b4 {[%emt 0:02:53]} 41. Rg1+ {[%emt 0:01:10]} Kf6 {[%emt 0:00:04]} 42. cxb4 {[%emt 0:00:18]} Nxf5 {[%emt 0:00:24]} 43. exf5 {[%emt 0:00:06]} Kxf5 {[%emt 0:00:17]} 44. Kc4 {[%emt 0:01:19]} Bf3 {[%emt 0:01:52]} 45. b5 {[%emt 0:00:39]} e4 {[%emt 0:00:45]} 46. Nd4+ {[%emt 0:00:41]} Ke5 {[%emt 0:01:03]} 47. Rg5+ {[%emt 0:01:03]} Kf6 {[%emt 0:00:36]} 48. Nxf3 {[%emt 0:00:16]} 1-0

[Event "98th Caplin Hastings Masters 2024-25"]
[Site "Hastings"]
[Date "2024.12.29"]
[Round "3.27"]
[White "Lishoy Gengis Paratazham, Dildarav"]
[Black "Steiners, Emils"]
[Result "1/2-1/2"]
[ECO "A13"]
[WhiteElo "2037"]
[BlackElo "2209"]
[Annotator "RC"]
[PlyCount "173"]
[EventDate "2024.12.23"]
[EventType "swiss"]
[EventCountry "ENG"]
[SourceTitle "playchess.com"]
[Source "ChessBase"]
[SourceQuality "1"]
[TimeControl "5400+30"]

1. Nf3 {[%emt 0:00:03]} d5 {[%emt 0:00:08]} 2. c4 {[%emt 0:00:37]} e6 {[%emt 0:00:12]} 3. g3 {[%emt 0:00:04]} Nf6 {[%emt 0:00:27]} 4. Bg2 {[%emt 0:00:05]} Nbd7 {[%emt 0:00:34]} 5. cxd5 {[%emt 0:03:43]} exd5 {[%emt 0:00:14]} 6. O-O {[%emt 0:00:24]} Be7 {[%emt 0:00:19]} 7. b3 {[%emt 0:00:36]} O-O {[%emt 0:00:46]} 8. Bb2 {[%emt 0:00:07]} c6 {[%emt 0:06:10]} 9. d3 {[%emt 0:08:27]} b6 {[%emt 0:05:55]} 10. Nbd2 {[%emt 0:00:24]} Ba6 {[%emt 0:01:47]} 11. Nd4 {[%emt 0:02:52]} Rc8 {[%emt 0:01:19]} 12. Rc1 {[%emt 0:00:11]} c5 {[%emt 0:01:03]} 13. Nf5 {[%emt 0:00:06]} Re8 {[%emt 0:01:59]} 14. Nxe7+ {[%emt 0:00:05]} Qxe7 {[%emt 0:00:14]} 15. Re1 {[%emt 0:00:04]} Qd6 {[%emt 0:15:13]} 16. Qc2 {[%emt 0:08:28]} d4 {[%emt 0:06:21]} 17. Nc4 {[%emt 0:03:27]} Qb8 {[%emt 0:04:50]} 18. Qd2 {[%emt 0:12:12]} Ne5 {[%emt 0:16:41]} 19. Nxe5 {[%emt 0:13:46]} Qxe5 {[%emt 0:03:01]} 20. a3 {[%emt 0:07:32]} Qd6 {[%emt 0:03:08]} 21. Rcd1 {[%emt 0:05:02]} h5 {[%emt 0:04:23]} 22. e4 {[%emt 0:05:09]} h4 {[%emt 0:03:18]} 23. Bh3 {[%emt 0:02:23]} Rcd8 {[%emt 0:02:21]} 24. Qf4 {[%emt 0:06:16]} Re5 {[%emt 0:01:35]} 25. Bc1 {[%emt 0:01:35]} Rde8 {[%emt 0:02:16]} 26. Qf3 {[%emt 0:01:03]} Qc6 {[%emt 0:01:23]} 27. Bf4 {[%emt 0:01:25]} R5e7 {[%emt 0:02:50]} 28. Bg5 {[%emt 0:00:52]} hxg3 {[%emt 0:00:38]} 29. fxg3 {[%emt 0:00:10]} Rc7 {[%emt 0:02:13]} 30. Bf4 {[%emt 0:05:51]} Rb7 {[%emt 0:01:11]} 31. Bg2 {[%emt 0:01:50]} Qe6 {[%emt 0:01:59]} 32. e5 {[%emt 0:01:39]} Nh7 {[%emt 0:00:38]} 33. Qc6 {[%emt 0:03:35]} Rbe7 {[%emt 0:01:01]} 34. Qxe6 {[%emt 0:00:08]} Rxe6 {[%emt 0:00:17]} 35. h4 {[%emt 0:00:51]} R6e7 {[%emt 0:01:16]} 36. Bc6 {[%emt 0:00:48]} Rc8 {[%emt 0:00:04]} 37. Bd5 {[%emt 0:00:55]} Nf8 {[%emt 0:01:55]} 38. Be4 {[%emt 0:01:42]} Ne6 {[%emt 0:01:17]} 39. Bd2 {[%emt 0:00:08]} Nd8 {[%emt 0:04:40]} 40. b4 {[%emt 0:00:50]} Kf8 {[%emt 0:01:54]} 41. bxc5 {[%emt 0:00:50]} bxc5 {[%emt 0:00:08]} 42. Bf4 {[%emt 0:00:13]} Ne6 {[%emt 0:01:46]} 43. Rc1 {[%emt 0:01:29]} Bb5 {[%emt 0:01:05]} 44. Rc2 {[%emt 0:01:07]} a6 {[%emt 0:00:12]} 45. Rec1 {[%emt 0:00:11]} Rec7 {[%emt 0:00:33]} 46. Kf2 {[%emt 0:01:07]} Rb8 {[%emt 0:00:00]} 47. Rb2 {[%emt 0:00:25]} Rd8 {[%emt 0:00:51]} 48. Rbc2 {[%emt 0:00:33]} Bc6 {[%emt 0:01:36]} 49. Bf5 {[%emt 0:00:13]} Ba4 {[%emt 0:00:14]} 50. Rc4 {[%emt 0:00:41]} Bb5 {[%emt 0:00:43]} 51. R4c2 {[%emt 0:00:17]} Rdc8 {[%emt 0:00:44]} 52. Bd2 {[%emt 0:00:31]} Ba4 {[%emt 0:00:27]} 53. Bxe6 {[%emt 0:00:30]} fxe6 {[%emt 0:00:24]} 54. Rxc5 {[%emt 0:00:22]} Rxc5 {[%emt 0:00:37]} 55. Bb4 {[%emt 0:00:14]} Kf7 {[%emt 0:00:35]} 56. Rxc5 {[%emt 0:00:08]} Rb8 {[%emt 0:00:27]} 57. Rc4 {[%emt 0:00:09]} a5 {[%emt 0:00:27]} 58. Bxa5 {[%emt 0:01:17]} Rb2+ {[%emt 0:00:07]} 59. Ke1 {[%emt 0:01:09]} Bb5 {[%emt 0:00:59]} 60. Rb4 {[%emt 0:00:58]} Rxb4 {[%emt 0:00:03]} 61. axb4 {[%emt 0:00:19]} Bxd3 {[%emt 0:00:05]} 62. Bb6 {[%emt 0:00:01]} Kg6 {[%emt 0:00:14]} 63. Bxd4 {[%emt 0:00:05]} Kf5 {[%emt 0:00:08]} 64. Kd2 {[%emt 0:00:45]} Ke4 {[%emt 0:00:23]} 65. Be3 {[%emt 0:00:11]} Ba6 {[%emt 0:00:26]} 66. Bf4 {[%emt 0:00:16]} g6 {[%emt 0:00:06]} 67. Kc3 {[%emt 0:00:11]} Bf1 {[%emt 0:00:13]} 68. Kb3 {[%emt 0:00:13]} Bb5 {[%emt 0:00:03]} 69. Ka3 {[%emt 0:00:10]} Kf5 {[%emt 0:00:22]} 70. Kb3 {[%emt 0:00:40]} Ke4 {[%emt 0:00:05]} 71. Kc3 {[%emt 0:00:19]} Ba6 {[%emt 0:00:12]} 72. Kc2 {[%emt 0:00:50]} Bd3+ {[%emt 0:00:12]} 73. Kd2 {[%emt 0:00:29]} Ba6 {[%emt 0:00:06]} 74. Ke1 {[%emt 0:00:12]} Kf3 {[%emt 0:00:08]} 75. Kd1 {[%emt 0:00:43]} Ke4 {[%emt 0:00:06]} 76. Kd2 {[%emt 0:00:18]} Bb5 {[%emt 0:00:12]} 77. Kc3 {[%emt 0:00:03]} Ba6 {[%emt 0:00:04]} 78. b5 {[%emt 0:00:16]} Bxb5 {[%emt 0:00:06]} 79. Kb4 {[%emt 0:00:03]} Bd3 {[%emt 0:00:17]} 80. Kc5 {[%emt 0:00:05]} Kf3 {[%emt 0:00:21]} 81. Kd6 {[%emt 0:00:06]} Bf5 {[%emt 0:00:06]} 82. Ke7 {[%emt 0:00:04]} Kg4 {[%emt 0:00:08]} 83. Kf6 {[%emt 0:00:05]} Kh5 {[%emt 0:00:06]} 84. Kg7 {[%emt 0:00:11]} Bg4 {[%emt 0:00:05]} 85. Kf6 {[%emt 0:00:21]} Bf5 {[%emt 0:00:05]} 86. Kf7 {[%emt 0:00:13]} Bg4 {[%emt 0:00:04]} 87. Kf6 {[%emt 0:00:03]} 1/2-1/2

[Event "98th Caplin Hastings Masters 2024-25"]
[Site "Hastings"]
[Date "2024.12.29"]
[Round "3.28"]
[White "Verbytski, Oleg"]
[Black "Bin-Suhayl, Ieysaa"]
[Result "1/2-1/2"]
[ECO "C54"]
[WhiteElo "2033"]
[BlackElo "2183"]
[Annotator "RC"]
[PlyCount "68"]
[EventDate "2024.12.23"]
[EventType "swiss"]
[EventCountry "ENG"]
[SourceTitle "playchess.com"]
[Source "ChessBase"]
[SourceQuality "1"]
[TimeControl "5400+30"]

1. e4 {[%emt 0:00:35]} e5 {[%emt 0:06:49]} 2. Nf3 {[%emt 0:00:05]} Nc6 {[%emt 0:00:10]} 3. Bc4 {[%emt 0:00:05]} Bc5 {[%emt 0:00:41]} 4. c3 {[%emt 0:00:09]} Nf6 {[%emt 0:00:04]} 5. d3 {[%emt 0:00:05]} d6 {[%emt 0:01:35]} 6. Nbd2 {[%emt 0:00:16]} a6 {[%emt 0:01:56]} 7. a4 {[%emt 0:00:22]} O-O {[%emt 0:04:09]} 8. O-O {[%emt 0:00:26]} Re8 {[%emt 0:00:15]} 9. h3 {[%emt 0:00:13]} Be6 {[%emt 0:00:30]} 10. Re1 {[%emt 0:00:14]} Bxc4 {[%emt 0:02:22]} 11. dxc4 {[%emt 0:00:27]} a5 {[%emt 0:00:14]} 12. Nf1 {[%emt 0:00:11]} Ne7 {[%emt 0:00:49]} 13. Qc2 {[%emt 0:02:59]} Ng6 {[%emt 0:02:07]} 14. Be3 {[%emt 0:00:52]} Bxe3 {[%emt 0:02:38]} 15. fxe3 {[%emt 0:05:17]} c6 {[%emt 0:02:32]} 16. Rad1 {[%emt 0:01:25]} Qc7 {[%emt 0:00:06]} 17. Ng3 {[%emt 0:04:37]} Rad8 {[%emt 0:02:13]} 18. b4 {[%emt 0:02:15]} b5 {[%emt 0:12:37]} 19. axb5 {[%emt 0:06:13]} axb4 {[%emt 0:05:34]} 20. cxb4 {[%emt 0:05:36]} cxb5 {[%emt 0:00:04]} 21. c5 {[%emt 0:00:15]} Rc8 {[%emt 0:19:25]} 22. Rc1 {[%emt 0:06:37]} dxc5 {[%emt 0:00:33]} 23. bxc5 {[%emt 0:00:08]} Qc6 {[%emt 0:03:33]} 24. Qb3 {[%emt 0:02:54]} Nxe4 {[%emt 0:02:24]} 25. Nxe4 {[%emt 0:01:25]} Qxe4 {[%emt 0:00:26]} 26. Qxf7+ {[%emt 0:00:09]} Kh8 {[%emt 0:02:31]} 27. Qb3 {[%emt 0:03:00]} Rf8 {[%emt 0:06:32]} 28. Rf1 {[%emt 0:02:41]} h6 {[%emt 0:01:09]} 29. Kh1 {[%emt 0:03:03]} Qc6 {[%emt 0:03:43]} 30. Qb4 {[%emt 0:01:39]} Rf5 {[%emt 0:02:59]} 31. Kh2 {[%emt 0:07:40]} Rcf8 {[%emt 0:01:39]} 32. Nd2 {[%emt 0:01:54]} Rxf1 {[%emt 0:08:37]} 33. Rd1 {[%emt 0:43:13]} R8f2 34. Rxf1 Rxf1 {[%emt 0:00:40]} 1/2-1/2

[Event "98th Caplin Hastings Masters 2024-25"]
[Site "Hastings"]
[Date "2024.12.29"]
[Round "3.29"]
[White "Rida, Ruqayyah"]
[Black "Dewangan, Aayush"]
[Result "1-0"]
[ECO "B80"]
[WhiteElo "2019"]
[BlackElo "1878"]
[Annotator "RC"]
[PlyCount "75"]
[EventDate "2024.12.23"]
[EventType "swiss"]
[EventCountry "ENG"]
[SourceTitle "playchess.com"]
[Source "ChessBase"]
[SourceQuality "1"]
[TimeControl "5400+30"]

1. e4 {[%emt 0:00:01]} c5 {[%emt 0:00:04]} 2. Nf3 {[%emt 0:00:09]} d6 {[%emt 0:00:03]} 3. d4 {[%emt 0:00:07]} cxd4 {[%emt 0:00:04]} 4. Nxd4 {[%emt 0:00:06]} Nf6 {[%emt 0:00:05]} 5. Nc3 {[%emt 0:00:13]} a6 {[%emt 0:00:07]} 6. f3 {[%emt 0:00:28]} e6 {[%emt 0:00:39]} 7. Be3 {[%emt 0:00:32]} b5 {[%emt 0:00:26]} 8. a3 {[%emt 0:00:40]} Nbd7 {[%emt 0:00:35]} 9. Qd2 {[%emt 0:01:13]} Nb6 {[%emt 0:00:05]} 10. a4 {[%emt 0:06:24]} Nc4 {[%emt 0:03:58]} 11. Bxc4 {[%emt 0:01:01]} bxc4 {[%emt 0:00:08]} 12. O-O {[%emt 0:01:22]} Qc7 {[%emt 0:01:39]} 13. a5 {[%emt 0:02:38]} Bb7 {[%emt 0:08:07]} 14. Rfe1 {[%emt 0:03:28]} Be7 {[%emt 0:07:25]} 15. Bf2 {[%emt 0:02:45]} O-O {[%emt 0:05:07]} 16. Qe2 {[%emt 0:12:34]} Rab8 {[%emt 0:13:54]} 17. Nd1 {[%emt 0:09:12]} Nd7 {[%emt 0:05:30]} 18. Ne3 {[%emt 0:14:35]} Rfc8 {[%emt 0:03:38]} 19. Ra4 {[%emt 0:07:13]} Ne5 {[%emt 0:04:19]} 20. f4 {[%emt 0:11:11]} Qd7 {[%emt 0:02:49]} 21. Rb4 {[%emt 0:03:10]} Ng6 {[%emt 0:02:25]} 22. Nxc4 {[%emt 0:02:59]} d5 {[%emt 0:05:14]} 23. Nb6 {[%emt 0:01:45]} Qc7 {[%emt 0:00:37]} 24. Rb3 {[%emt 0:01:26]} Nxf4 {[%emt 0:01:47]} 25. Qg4 {[%emt 0:02:43]} Rd8 {[%emt 0:00:26]} 26. Rc3 {[%emt 0:01:15]} Qe5 {[%emt 0:02:55]} 27. Nf3 {[%emt 0:01:44]} h5 {[%emt 0:05:56]} 28. Qg3 {[%emt 0:02:20]} h4 {[%emt 0:00:01]} 29. Qg4 {[%emt 0:00:54]} f5 {[%emt 0:01:18]} 30. exf5 {[%emt 0:02:05]} exf5 {[%emt 0:00:25]} 31. Rxe5 {[%emt 0:01:53]} fxg4 {[%emt 0:00:02]} 32. Rxe7 {[%emt 0:00:18]} gxf3 {[%emt 0:01:08]} 33. Rcc7 {[%emt 0:01:24]} fxg2 {[%emt 0:01:29]} 34. Rxg7+ {[%emt 0:00:12]} Kh8 {[%emt 0:00:16]} 35. Rh7+ {[%emt 0:00:10]} Kg8 {[%emt 0:00:01]} 36. Rcg7+ {[%emt 0:00:18]} Kf8 {[%emt 0:00:05]} 37. Bc5+ {[%emt 0:00:08]} Ke8 {[%emt 0:00:08]} 38. Rh8# {[%emt 0:00:11]} 1-0

[Event "98th Caplin Hastings Masters 2024-25"]
[Site "Hastings"]
[Date "2024.12.29"]
[Round "3.30"]
[White "Bhatia, Kanishka"]
[Black "Kim, Taewoo A"]
[Result "1/2-1/2"]
[ECO "D31"]
[WhiteElo "2018"]
[BlackElo "1863"]
[Annotator "RC"]
[PlyCount "109"]
[EventDate "2024.12.23"]
[EventType "swiss"]
[EventCountry "ENG"]
[SourceTitle "playchess.com"]
[Source "ChessBase"]
[SourceQuality "1"]
[TimeControl "5400+30"]

1. d4 {[%emt 0:00:45]} d5 {[%emt 0:00:45]} 2. c4 {[%emt 0:00:23]} e6 {[%emt 0:00:08]} 3. Nc3 {[%emt 0:00:18]} c6 {[%emt 0:00:15]} 4. Nf3 {[%emt 0:00:35]} dxc4 {[%emt 0:00:10]} 5. a4 {[%emt 0:00:18]} Bb4 {[%emt 0:00:12]} 6. e3 {[%emt 0:01:16]} b5 {[%emt 0:00:18]} 7. Bd2 {[%emt 0:00:44]} a5 {[%emt 0:00:22]} 8. axb5 {[%emt 0:00:40]} Bxc3 {[%emt 0:00:11]} 9. Bxc3 {[%emt 0:00:20]} cxb5 {[%emt 0:00:13]} 10. b3 {[%emt 0:00:48]} Bb7 {[%emt 0:00:12]} 11. bxc4 {[%emt 0:00:23]} b4 {[%emt 0:00:06]} 12. Bd2 {[%emt 0:01:31]} Nf6 {[%emt 0:00:49]} 13. Bd3 {[%emt 0:00:22]} Nbd7 {[%emt 0:01:06]} 14. O-O {[%emt 0:00:38]} O-O {[%emt 0:02:13]} 15. Qc2 {[%emt 0:01:42]} Qc7 {[%emt 0:00:58]} 16. e4 {[%emt 0:02:16]} e5 {[%emt 0:01:01]} 17. Bg5 {[%emt 0:01:32]} exd4 {[%emt 0:07:26]} 18. Nxd4 {[%emt 0:00:43]} Ng4 {[%emt 0:05:12]} 19. g3 {[%emt 0:03:17]} Qc5 {[%emt 0:07:53]} 20. Nf5 {[%emt 0:02:19]} f6 {[%emt 0:07:22]} 21. Bf4 {[%emt 0:03:30]} Nge5 {[%emt 0:01:12]} 22. Be3 {[%emt 0:00:52]} Qc7 {[%emt 0:00:44]} 23. Ne7+ {[%emt 0:06:34]} Kh8 {[%emt 0:02:26]} 24. Be2 {[%emt 0:00:48]} Nb6 {[%emt 0:04:09]} 25. c5 {[%emt 0:03:19]} Qxe7 {[%emt 0:00:41]} 26. cxb6 {[%emt 0:01:04]} Rfc8 {[%emt 0:01:45]} 27. Qb3 {[%emt 0:06:25]} Bxe4 {[%emt 0:04:57]} 28. Rfc1 {[%emt 0:05:24]} Qb7 {[%emt 0:13:21]} 29. Qe6 {[%emt 0:22:55]} Nf3+ {[%emt 0:26:20]} 30. Bxf3 {[%emt 0:01:14]} Bxf3 {[%emt 0:00:06]} 31. Rxc8+ {[%emt 0:10:55]} Qxc8 {[%emt 0:02:31]} 32. Qxc8+ {[%emt 0:01:31]} Rxc8 {[%emt 0:00:02]} 33. Rxa5 {[%emt 0:01:19]} Rd8 {[%emt 0:02:18]} 34. Ra1 {[%emt 0:00:51]} b3 {[%emt 0:03:44]} 35. b7 {[%emt 0:06:38]} b2 {[%emt 0:04:28]} 36. Re1 {[%emt 0:01:00]} h5 {[%emt 0:02:22]} 37. Bd4 {[%emt 0:01:16]} Bxb7 {[%emt 0:00:25]} 38. Bxb2 {[%emt 0:00:10]} Bf3 {[%emt 0:00:24]} 39. Bc3 {[%emt 0:03:05]} Kh7 {[%emt 0:00:33]} 40. Re3 {[%emt 0:00:20]} Rd1+ {[%emt 0:00:18]} 41. Be1 {[%emt 0:00:15]} Bg4 {[%emt 0:00:25]} 42. Kg2 {[%emt 0:00:19]} Bd7 {[%emt 0:00:48]} 43. f4 {[%emt 0:00:34]} Ra1 {[%emt 0:00:34]} 44. Re2 {[%emt 0:01:14]} Bg4 {[%emt 0:00:19]} 45. Re3 {[%emt 0:00:29]} Ra2+ {[%emt 0:00:15]} 46. Bf2 {[%emt 0:00:09]} Kg6 {[%emt 0:00:34]} 47. Rc3 {[%emt 0:00:50]} Rb2 {[%emt 0:00:33]} 48. Ra3 {[%emt 0:00:21]} Rc2 {[%emt 0:00:13]} 49. Re3 {[%emt 0:00:13]} Ra2 {[%emt 0:00:13]} 50. Rc3 {[%emt 0:00:25]} Rb2 {[%emt 0:00:12]} 51. Rc7 {[%emt 0:00:26]} Ra2 {[%emt 0:00:41]} 52. Rc1 {[%emt 0:00:47]} Rb2 {[%emt 0:00:33]} 53. Rc7 {[%emt 0:00:25]} Ra2 {[%emt 0:00:12]} 54. Rc1 {[%emt 0:00:08]} Rb2 {[%emt 0:02:20]} 55. Rc7 {[%emt 0:00:05]} 1/2-1/2